fUSD/lending_fUSD_20260228
["ID","MTS","AMOUNT","RATE_DAILY","PERIOD"]
[406868101,1772253322761,552.22,5.937e-05,2]
[406868102,1772253322965,552.22,6.127e-05,2]
[406868103,1772253323165,552.22,6.317e-05,2]
[406868104,1772253323379,552.22,6.508e-05,2]
[406868105,1772253323612,552.22,6.698e-05,2]
[406868106,1772253323819,552.22,6.888e-05,2]
[406868108,1772253603647,210.0,7.078e-05,2]
[406868109,1772253606204,175.0,9e-05,3]
[406868110,1772253924325,2348.94044214,8.55e-05,3]
[406868111,1772254023953,1400.0,8.8e-05,3]
[406868112,1772254026043,2900.0,8.9e-05,3]
[406868113,1772254028143,4400.0,9e-05,3]
[406868114,1772254203821,210.0,7.078e-05,2]
[406868126,1772254231528,-507.104,7.078e-05,2]
[406868127,1772254231540,-45.116,7.078e-05,2]
[406868128,1772254231550,-250.0,7.084e-05,2]
[406868129,1772254231559,-5000.0,7.09e-05,2]
[406868130,1772254231568,-1829.61,7.147e-05,2]
[406868131,1772254231578,-250.0,7.207e-05,2]
[406868132,1772254231587,-1200.0,7.267e-05,2]
[406868133,1772254231597,-552.22,7.268e-05,2]
[406868134,1772254231606,-529.07,7.344e-05,2]
[406868135,1772254231616,-552.22,7.458e-05,2]
[406868136,1772254231625,-300.0,7.591e-05,2]
[406868137,1772254231635,-300.0,7.592e-05,2]
[406868139,1772254231644,-300.0,7.592e-05,2]
[406868141,1772254231653,-4792.5,7.593e-05,2]
[406868142,1772254231663,-450.0,7.618e-05,2]
[406868143,1772254231672,-552.22,7.649e-05,2]
[406868144,1772254231681,-3403.15,7.671e-05,2]
[406868145,1772254231690,-156.0,7.709e-05,2]
[406868146,1772254231699,-1069.0,7.733e-05,2]
[406868147,1772254231708,-5000.0,7.786e-05,2]
[406868148,1772254231717,-5000.0,7.786e-05,2]
[406868149,1772254231727,-250.0,7.786e-05,2]
[406868150,1772254231735,-552.22,7.839e-05,2]
[406868151,1772254231744,-335.0,7.853e-05,2]
[406868152,1772254231753,-150.0,7.865e-05,2]
[406868153,1772254231762,-433.0,7.866e-05,2]
[406868154,1772254231772,-481.0,7.868e-05,2]
[406868155,1772254231781,-253.0,7.884e-05,2]
[406868156,1772254231791,-325.0,7.912e-05,2]
[406868157,1772254231800,-41016.330888,7.945e-05,2]
[406868158,1772254231810,-1680.0,7.994e-05,2]
[406868159,1772254231819,-552.22,8.029e-05,2]
[406868161,1772254231828,-11830.25984,8.178e-05,2]
[406868162,1772254231838,-150.0,8.219e-05,2]
[406868163,1772254231847,-150.98678,8.219e-05,2]
[406868164,1772254231856,-151.973561,8.219e-05,2]
[406868165,1772254231866,-152.960342,8.219e-05,2]
[406868166,1772254231875,-153.947123,8.219e-05,2]
[406868167,1772254231884,-154.933904,8.219e-05,2]
[406868168,1772254231893,-155.920685,8.219e-05,2]
[406868169,1772254231902,-156.907466,8.219e-05,2]
[406868170,1772254231911,-157.894247,8.219e-05,2]
[406868171,1772254231921,-158.881028,8.219e-05,2]
[406868172,1772254231930,-188.485271,8.219e-05,2]
[406868173,1772254231940,-150.0,8.24e-05,2]
[406868174,1772254231949,-154.95516926,8.24e-05,2]
[406868175,1772254231959,-150.0,8.24e-05,2]
[406868176,1772254231968,-154.23705455,8.24e-05,2]
[406868177,1772254231977,-150.0,8.24e-05,2]
[406868178,1772254231986,-150.0,8.24e-05,2]
[406868179,1772254231995,-150.0,8.24e-05,2]
[406868180,1772254232004,-163.84344355,8.24e-05,2]
[406868181,1772254232014,-150.0,8.24e-05,2]
[406868182,1772254232023,-155.96966553,8.24e-05,2]
[406868183,1772254232033,-162.55414712,8.24e-05,2]
[406868184,1772254232042,-152.77559653,8.24e-05,2]
[406868185,1772254232052,-196.9807025,8.24e-05,2]
[406868186,1772254232060,-500.0,8.24e-05,2]
[406868187,1772254232070,-500.0,8.24e-05,2]
[406868188,1772254232079,-150.0,8.272e-05,2]
[406868189,1772254232089,-150.0,8.272e-05,2]
[406868190,1772254232098,-152.88887975,8.295e-05,2]
[406868191,1772254232107,-150.0,8.295e-05,2]
[406868192,1772254232117,-150.0,8.295e-05,2]
[406868193,1772254232126,-150.0,8.295e-05,2]
[406868194,1772254232136,-159.12358456,8.295e-05,2]
[406868195,1772254232145,-500.0,8.295e-05,2]
[406868196,1772254232155,-150.0,8.35e-05,2]
[406868197,1772254232164,-220.61532295,8.35e-05,2]
[406868198,1772254232173,-150.0,8.35e-05,2]
[406868199,1772254232182,-381.2607045,8.35e-05,2]
[406868200,1772254232191,-420.0,8.35e-05,2]
[406868201,1772254232201,-420.0,8.351e-05,2]
[406868202,1772254232210,-150.0,8.399e-05,2]
[406868203,1772254232219,-150.0,8.399e-05,2]
[406868204,1772254232228,-150.0,8.399e-05,2]
[406868205,1772254232237,-158.95668988,8.399e-05,2]
[406868206,1772254232246,-214.55409961,8.399e-05,2]
[406868207,1772254232255,-150.0,8.399e-05,2]
[406868208,1772254232264,-173.77561775,8.404e-05,2]
[406868209,1772254232273,-214.04739671,8.404e-05,2]
[406868210,1772254232282,-150.0,8.454e-05,2]
[406868211,1772254232292,-150.0,8.454e-05,2]
[406868212,1772254232301,-150.0,8.454e-05,2]
[406868213,1772254232311,-150.0,8.509e-05,2]
[406868214,1772254232320,-200.0,8.509e-05,2]
[406868215,1772254232331,-156.41275751,8.509e-05,2]
[406868216,1772254232343,-500.0,8.514e-05,2]
[406868217,1772254232353,-1000.0,8.563e-05,2]
[406868218,1772254232363,-150.0,8.563e-05,2]
[406868219,1772254232372,-6745.127,8.573e-05,2]
[406868220,1772254232383,-4133.7097,8.573e-05,2]
[406868221,1772254232392,-89546.4512,8.573e-05,2]
[406868222,1772254232402,-2500.0,8.573e-05,2]
[406868223,1772254232412,-255.0,8.652e-05,2]
[406868224,1772254232422,-500.0,8.673e-05,2]
[406868225,1772254232431,-500.58678737,8.673e-05,2]
[406868226,1772254232441,-500.0,8.673e-05,2]
[406868227,1772254232450,-163.0840927,8.673e-05,2]
[406868228,1772254232460,-500.0,8.673e-05,2]
[406868229,1772254232470,-226.38041342,8.673e-05,2]
[406868230,1772254232479,-502.24115013,8.673e-05,2]
[406868231,1772254232489,-500.0,8.673e-05,2]
[406868232,1772254232498,-500.0,8.673e-05,2]
[406868233,1772254232507,-500.0,8.673e-05,2]
[406868234,1772254232516,-500.0,8.673e-05,2]
[406868235,1772254232526,-341.60788349,8.673e-05,2]
[406868236,1772254232535,-500.30851718,8.673e-05,2]
[406868237,1772254232545,-493.67205134,8.673e-05,2]
[406868238,1772254232555,-500.0,8.673e-05,2]
[406868239,1772254232565,-501.72819961,8.673e-05,2]
[406868240,1772254232574,-500.0,8.673e-05,2]
[406868241,1772254232584,-500.0,8.673e-05,2]
[406868242,1772254232593,-501.59993335,8.673e-05,2]
[406868243,1772254232602,-500.0,8.673e-05,2]
[406868244,1772254232611,-500.43690086,8.673e-05,2]
[406868245,1772254232622,-500.0,8.673e-05,2]
[406868246,1772254232631,-500.0,8.673e-05,2]
[406868247,1772254232641,-500.0,8.673e-05,2]
[406868248,1772254232651,-500.0,8.673e-05,2]
[406868249,1772254232660,-500.0,8.673e-05,2]
[406868250,1772254232669,-500.0,8.673e-05,2]
[406868251,1772254232678,-500.0,8.673e-05,2]
[406868252,1772254232688,-164.6207651,8.673e-05,2]
[406868253,1772254232697,-503.06902733,8.673e-05,2]
[406868254,1772254232706,-500.0,8.673e-05,2]
[406868255,1772254232715,-501.05665714,8.673e-05,2]
[406868256,1772254232724,-500.67601232,8.673e-05,2]
[406868257,1772254232734,-543.78,8.673e-05,2]
[406868258,1772254232744,-362.7163988,8.687e-05,2]
[406868259,1772254232753,-500.0,8.687e-05,2]
[406868260,1772254232763,-500.0,8.687e-05,2]
[406868261,1772254232772,-500.0,8.687e-05,2]
[406868262,1772254232781,-500.0,8.687e-05,2]
[406868263,1772254232791,-291.33501849,8.687e-05,2]
[406868264,1772254232800,-846.38054386,8.687e-05,2]
[406868265,1772254232809,-846.38054386,8.687e-05,2]
[406868266,1772254232819,-846.38054386,8.687e-05,2]
[406868267,1772254232828,-846.38054386,8.687e-05,2]
[406868268,1772254232838,-846.38054386,8.687e-05,2]
[406868269,1772254232847,-846.38054386,8.687e-05,2]
[406868270,1772254232857,-846.38054386,8.687e-05,2]
[406868271,1772254232866,-846.38054386,8.687e-05,2]
[406868272,1772254232875,-846.38054386,8.687e-05,2]
[406868273,1772254232884,-846.38054386,8.687e-05,2]
[406868274,1772254232894,-846.38054386,8.687e-05,2]
[406868275,1772254232903,-846.38054386,8.687e-05,2]
[406868276,1772254232913,-846.38054386,8.687e-05,2]
[406868277,1772254232922,-846.38054386,8.687e-05,2]
[406868278,1772254232931,-846.38054386,8.687e-05,2]
[406868279,1772254232940,-846.38054386,8.687e-05,2]
[406868280,1772254232949,-846.38054386,8.687e-05,2]
[406868281,1772254232959,-846.38054386,8.687e-05,2]
[406868282,1772254232968,-846.38054386,8.687e-05,2]
[406868283,1772254232976,-846.38054386,8.687e-05,2]
[406868284,1772254232986,-846.38054386,8.687e-05,2]
[406868285,1772254232995,-846.38054386,8.687e-05,2]
[406868286,1772254233004,-846.38054386,8.687e-05,2]
[406868287,1772254233014,-846.38054386,8.687e-05,2]
[406868288,1772254233023,-846.38054386,8.687e-05,2]
[406868289,1772254233033,-846.38054386,8.687e-05,2]
[406868290,1772254233042,-846.38054386,8.687e-05,2]
[406868291,1772254233052,-846.38054386,8.687e-05,2]
[406868292,1772254233061,-846.38054386,8.687e-05,2]
[406868293,1772254233070,-846.38054386,8.687e-05,2]
[406868294,1772254233079,-846.38054386,8.687e-05,2]
[406868295,1772254233089,-846.38054386,8.687e-05,2]
[406868296,1772254233098,-846.38054386,8.687e-05,2]
[406868297,1772254233108,-846.38054386,8.687e-05,2]
[406868298,1772254233117,-846.38054386,8.687e-05,2]
[406868299,1772254233127,-846.38054386,8.687e-05,2]
[406868300,1772254233136,-846.38054386,8.687e-05,2]
[406868301,1772254233146,-846.38054386,8.687e-05,2]
[406868302,1772254233156,-846.38054386,8.687e-05,2]
[406868303,1772254233165,-846.38054386,8.687e-05,2]
[406868304,1772254233175,-846.38054386,8.687e-05,2]
[406868305,1772254233185,-846.38054386,8.687e-05,2]
[406868306,1772254233194,-846.38054386,8.687e-05,2]
[406868307,1772254233203,-846.38054386,8.687e-05,2]
[406868308,1772254233213,-846.38054386,8.687e-05,2]
[406868309,1772254233223,-846.38054386,8.687e-05,2]
[406868310,1772254233233,-846.38054386,8.687e-05,2]
[406868311,1772254233242,-846.38054386,8.687e-05,2]
[406868312,1772254233252,-846.38054386,8.687e-05,2]
[406868313,1772254233261,-846.38054386,8.687e-05,2]
[406868314,1772254233270,-846.38054386,8.687e-05,2]
[406868315,1772254233279,-846.38054386,8.687e-05,2]
[406868316,1772254233289,-846.38054386,8.687e-05,2]
[406868317,1772254233298,-837.72103025,8.687e-05,2]
[406868318,1772254233307,-837.72103025,8.687e-05,2]
[406868319,1772254233468,-837.72103025,8.687e-05,2]
[406868320,1772254233478,-837.72103025,8.687e-05,2]
[406868321,1772254233487,-837.72103025,8.687e-05,2]
[406868322,1772254233497,-837.72103025,8.687e-05,2]
[406868323,1772254233506,-837.72103025,8.687e-05,2]
[406868324,1772254233516,-837.72103025,8.687e-05,2]
[406868325,1772254233526,-837.72103025,8.687e-05,2]
[406868326,1772254233536,-837.72103025,8.687e-05,2]
[406868327,1772254233546,-837.72103025,8.687e-05,2]
[406868328,1772254233555,-837.72103025,8.687e-05,2]
[406868329,1772254233564,-837.72103025,8.687e-05,2]
[406868330,1772254233574,-837.72103025,8.687e-05,2]
[406868331,1772254233583,-837.72103025,8.687e-05,2]
[406868332,1772254233592,-837.72103025,8.687e-05,2]
[406868333,1772254233602,-837.72103025,8.687e-05,2]
[406868334,1772254233611,-837.72103025,8.687e-05,2]
[406868335,1772254233620,-837.72103025,8.687e-05,2]
[406868336,1772254233630,-837.72103025,8.687e-05,2]
[406868337,1772254233639,-837.72103025,8.687e-05,2]
[406868338,1772254233649,-837.72103025,8.687e-05,2]
[406868339,1772254233659,-837.72103025,8.687e-05,2]
[406868340,1772254233668,-837.72103025,8.687e-05,2]
[406868341,1772254233677,-837.72103025,8.687e-05,2]
[406868342,1772254233686,-837.72103025,8.687e-05,2]
[406868343,1772254233695,-837.72103025,8.687e-05,2]
[406868344,1772254233705,-837.72103025,8.687e-05,2]
[406868345,1772254233714,-837.72103025,8.687e-05,2]
[406868346,1772254233724,-837.72103025,8.687e-05,2]
[406868347,1772254233734,-837.72103025,8.687e-05,2]
[406868348,1772254233743,-967.59442083,8.687e-05,2]
[406868349,1772254233752,-967.59442083,8.687e-05,2]
[406868350,1772254233761,-967.59442083,8.687e-05,2]
[406868351,1772254233771,-967.59442083,8.687e-05,2]
[406868352,1772254233780,-967.59442083,8.687e-05,2]
[406868353,1772254233790,-967.59442083,8.687e-05,2]
[406868354,1772254233799,-500.0,8.687e-05,2]
[406868355,1772254233808,-500.0,8.687e-05,2]
[406868356,1772254233818,-450.38667386,8.687e-05,2]
[406868357,1772254233827,-32888.5933,8.689e-05,2]
[406868358,1772254233836,-500.0,8.788e-05,2]
[406868359,1772254233846,-2351.0,8.793e-05,2]
[406868360,1772254233855,-356.0,8.885e-05,2]
[406868361,1772254233864,-243.0,8.902e-05,2]
[406868362,1772254233873,-543.78,8.947e-05,2]
[406868363,1772254233883,-1001.13389285,8.999e-05,2]
[406868364,1772254233891,-235.606589,9.056e-05,2]
[406868365,1772254233901,-500.0,9.062e-05,2]
[406868366,1772254233910,-587.0,9.185e-05,2]
[406868367,1772254233919,-3404.52484007,9.186e-05,2]
[406868368,1772254233928,-587.0,9.187e-05,2]
[406868369,1772254233937,-564.8102135,9.221e-05,2]
[406868370,1772254233947,-532.85842952,9.221e-05,2]
[406868371,1772254233956,-1000.0,9.221e-05,2]
[406868372,1772254233970,-607.20032437,9.221e-05,2]
[406868373,1772254233979,-344.82215176,9.221e-05,2]
[406868374,1772254233988,-1000.0,9.221e-05,2]
[406868375,1772254233997,-1000.0,9.221e-05,2]
[406868376,1772254234007,-543.78,9.221e-05,2]
[406868377,1772254234016,-500.0,9.336e-05,2]
[406868378,1772254234025,-250.0,9.353e-05,2]
[406868379,1772254234035,-324.0,9.393e-05,2]
[406868380,1772254234044,-333.51,9.401e-05,2]
[406868381,1772254234053,-221.0,9.412e-05,2]
[406868382,1772254234063,-543.78,9.495e-05,2]
[406868383,1772254234073,-433.0,9.517e-05,2]
[406868384,1772254234083,-1930.506426,9.549e-05,2]
[406868385,1772254234092,-500.0,9.61e-05,2]
[406868386,1772254234101,-500.0,9.669e-05,2]
[406868387,1772254234111,-151.72421908,9.669e-05,2]
[406868388,1772254234120,-14666.24,9.67e-05,2]
[406868389,1772254234129,-150.99,9.67e-05,2]
[406868390,1772254234139,-299.99,9.67e-05,2]
[406868391,1772254234150,-999.99,9.67e-05,2]
[406868392,1772254234160,-150.99,9.67e-05,2]
[406868393,1772254234169,-24191.78444981,9.67e-05,2]
[406868394,1772254234303,-27798.04105434,9.67e-05,2]
[406868395,1772254234315,-32203.14449585,9.67e-05,2]
[406868396,1772254234324,-9999.99,9.67e-05,2]
[406868397,1772254234334,-9999.99,9.67e-05,2]
[406868398,1772254234346,-3292.0,9.673e-05,2]
[406868399,1772254234356,-543.80421015,9.768e-05,2]
[406868400,1772254234366,-503.94970501,9.768e-05,2]
[406868401,1772254234375,-1500.0,9.768e-05,2]
[406868402,1772254234386,-1500.0,9.768e-05,2]
[406868403,1772254234396,-500.0,9.884e-05,2]
[406868404,1772254234406,-151.0,0.0001,2]
[406868405,1772254234415,-151.0,0.0001,2]
[406868406,1772254234425,-151.0,0.0001,2]
[406868407,1772254234434,-151.0,0.0001,2]
[406868408,1772254234443,-151.0,0.0001,2]
[406868409,1772254234453,-151.0,0.0001,2]
[406868410,1772254234462,-151.0,0.0001,2]
[406868411,1772254234471,-151.0,0.0001,2]
[406868412,1772254234480,-151.0,0.0001,2]
[406868413,1772254234490,-151.0,0.0001,2]
[406868414,1772254234500,-151.0,0.0001,2]
[406868415,1772254234509,-1468.05806809,0.0001,2]
[406868416,1772254234518,-151.0,0.0001,2]
[406868417,1772254234527,-151.0,0.0001,2]
[406868418,1772254234536,-151.0,0.0001,2]
[406868419,1772254234547,-151.0,0.0001,2]
[406868420,1772254234556,-151.0,0.0001,2]
[406868421,1772254234566,-151.0,0.0001,2]
[406868422,1772254234575,-151.0,0.0001,2]
[406868423,1772254234585,-151.0,0.0001,2]
[406868424,1772254234594,-151.0,0.0001,2]
[406868425,1772254234604,-726.10987878,0.0001,2]
[406868426,1772254234613,-726.10987878,0.0001,2]
[406868427,1772254234623,-726.10987878,0.0001,2]
[406868428,1772254234632,-151.0,0.0001,2]
[406868429,1772254234642,-151.0,0.0001,2]
[406868430,1772254234651,-151.0,0.0001,2]
[406868431,1772254234660,-151.0,0.0001,2]
[406868432,1772254234670,-151.0,0.0001,2]
[406868433,1772254234681,-151.0,0.0001,2]
[406868434,1772254234696,-151.0,0.0001,2]
[406868435,1772254234705,-151.0,0.0001,2]
[406868436,1772254234714,-151.0,0.0001,2]
[406868437,1772254234724,-151.0,0.0001,2]
[406868438,1772254234733,-151.0,0.0001,2]
[406868439,1772254234742,-151.0,0.0001,2]
[406868440,1772254234751,-209.17459414,0.0001,2]
[406868441,1772254234761,-1557.86610815,0.0001,2]
[406868442,1772254234770,-823.0,0.00010105,2]
[406868443,1772254234780,-4643.48699046,0.00010137,3]
[406868444,1772254234789,-500.0,0.00010158,2]
[406868445,1772254234799,-500.0,0.000103,2]
[406868446,1772254234808,-500.0,0.000103,2]
[406868447,1772254234817,-500.0,0.000103,2]
[406868448,1772254234827,-500.0,0.000103,2]
[406868449,1772254234836,-500.0,0.000103,2]
[406868450,1772254234846,-500.0,0.000103,2]
[406868451,1772254234855,-923.38412055,0.000103,2]
[406868452,1772254234865,-500.0,0.000103,2]
[406868453,1772254234874,-500.0,0.000103,2]
[406868454,1772254234883,-500.0,0.000103,2]
[406868455,1772254234893,-506.8082533,0.000103,2]
[406868456,1772254234903,-500.0,0.000103,2]
[406868457,1772254234913,-500.0,0.000103,2]
[406868458,1772254234923,-600.0,0.000103,2]
[406868459,1772254234932,-500.0,0.000103,2]
[406868460,1772254234942,-979.04045203,0.000103,2]
[406868461,1772254234951,-600.0,0.000103,2]
[406868462,1772254234961,-710.68871512,0.000103,2]
[406868463,1772254234970,-600.0,0.000103,2]
[406868464,1772254234980,-600.0,0.000103,2]
[406868465,1772254234989,-500.0,0.000103,2]
[406868466,1772254234998,-600.0,0.000103,2]
[406868467,1772254235008,-500.0,0.000103,2]
[406868468,1772254235017,-600.0,0.000103,2]
[406868469,1772254235027,-500.0,0.000103,2]
[406868470,1772254235036,-600.0,0.000103,2]
[406868471,1772254235046,-500.0,0.000103,2]
[406868472,1772254235055,-600.0,0.000103,2]
[406868473,1772254235065,-500.0,0.000103,2]
[406868474,1772254235074,-600.0,0.000103,2]
[406868475,1772254235084,-500.0,0.000103,2]
[406868476,1772254235093,-600.0,0.000103,2]
[406868477,1772254235103,-500.0,0.000103,2]
[406868478,1772254235112,-600.0,0.000103,2]
[406868479,1772254235121,-500.0,0.000103,2]
[406868480,1772254235131,-500.0,0.000103,2]
[406868481,1772254235141,-600.0,0.000103,2]
[406868482,1772254235151,-500.60351731,0.000103,2]
[406868483,1772254235161,-500.0,0.000103,2]
[406868484,1772254235171,-1100.0,0.000103,2]
[406868485,1772254235180,-500.0,0.000103,2]
[406868486,1772254235190,-500.0,0.000103,2]
[406868487,1772254235199,-500.0,0.000103,2]
[406868488,1772254235208,-500.0,0.000103,2]
[406868489,1772254235218,-500.0,0.000103,2]
[406868490,1772254235228,-751.52454982,0.000103,2]
[406868491,1772254235238,-500.0,0.000103,2]
[406868492,1772254235247,-500.0,0.000103,2]
[406868493,1772254235257,-500.0,0.000103,2]
[406868494,1772254235267,-500.0,0.000103,2]
[406868495,1772254235276,-500.0,0.000103,2]
[406868496,1772254235286,-500.0,0.000103,2]
[406868497,1772254235295,-500.0,0.000103,2]
[406868498,1772254235305,-500.0,0.000103,2]
[406868499,1772254235315,-500.0,0.000103,2]
[406868500,1772254235324,-500.0,0.000103,2]
[406868501,1772254235333,-637.82024133,0.000103,2]
[406868502,1772254235347,-501.69063907,0.000103,2]
[406868503,1772254235356,-500.97875071,0.000103,2]
[406868504,1772254235365,-501.73395608,0.000103,2]
[406868505,1772254235375,-500.0,0.000103,2]
[406868506,1772254235386,-500.0,0.000103,2]
[406868507,1772254235396,-500.0,0.000103,2]
[406868508,1772254235405,-500.0,0.000103,2]
[406868509,1772254235417,-500.0,0.000103,2]
[406868510,1772254235427,-500.0,0.000103,2]
[406868511,1772254235436,-500.0,0.000103,2]
[406868512,1772254235446,-500.0,0.000103,2]
[406868513,1772254235456,-500.0,0.000103,2]
[406868514,1772254235465,-500.0,0.000103,2]
[406868515,1772254235475,-500.0,0.000103,2]
[406868516,1772254235484,-500.0,0.000103,2]
[406868517,1772254235494,-500.0,0.000103,2]
[406868518,1772254235503,-900.23919341,0.000103,2]
[406868519,1772254235513,-532.01062926,0.000103,2]
[406868520,1772254235523,-500.0,0.000103,2]
[406868521,1772254235534,-500.0,0.000103,2]
[406868522,1772254235543,-500.0,0.000103,2]
[406868523,1772254235553,-500.0,0.000103,2]
[406868524,1772254235562,-500.0,0.000103,2]
[406868525,1772254235573,-500.0,0.000103,2]
[406868526,1772254235583,-500.0,0.000103,2]
[406868527,1772254235594,-500.0,0.000103,2]
[406868528,1772254235605,-500.0,0.000103,2]
[406868529,1772254235615,-500.0,0.000103,2]
[406868530,1772254235625,-500.0,0.000103,2]
[406868531,1772254235635,-500.0,0.000103,2]
[406868532,1772254235646,-500.0,0.000103,2]
[406868533,1772254235655,-500.0,0.000103,2]
[406868534,1772254235667,-500.0,0.000103,2]
[406868535,1772254235677,-500.0,0.000103,2]
[406868536,1772254235686,-500.0,0.000103,2]
[406868537,1772254235696,-799.67654763,0.000103,2]
[406868538,1772254235706,-500.0,0.000103,2]
[406868539,1772254235715,-500.0,0.000103,2]
[406868540,1772254235724,-500.0,0.000103,2]
[406868541,1772254235734,-500.0,0.000103,2]
[406868542,1772254235753,-500.0,0.000103,2]
[406868543,1772254235763,-512.43302131,0.000103,2]
[406868544,1772254235772,-500.0,0.000103,2]
[406868545,1772254235782,-500.0,0.000103,2]
[406868546,1772254235791,-749.34833525,0.000103,2]
[406868547,1772254235800,-2000.0,0.00010316,2]
[406868548,1772254235809,-2000.0,0.00010316,2]
[406868549,1772254235819,-448.97518863,0.00010432,2]
[406868550,1772254235828,-736.0,0.00010468,2]
[406868551,1772254235837,-4609.0,0.0001064,2]
[406868552,1772254235846,-2500.0,0.00010864,2]
[406868553,1772254235855,-2617.83701369,0.00010864,2]
[406868554,1772254235864,-166.66,0.00010959,2]
[406868555,1772254235873,-150.0,0.00010959,2]
[406868556,1772254235882,-943.78455388,0.00011,2]
[406868557,1772254235892,-166.66,0.00011068,2]
[406868558,1772254235901,-489.80636374,0.00011098,2]
[406868559,1772254235910,-500.0,0.00011098,2]
[406868560,1772254235920,-597.67166663,0.00011098,2]
[406868561,1772254235929,-28503.88881026,0.00011099,2]
[406868562,1772254235939,-7322.32814899,0.00011099,2]
[406868563,1772254235949,-7322.32814893,0.00011099,2]
[406868564,1772254235958,-7322.32814893,0.00011099,2]
[406868565,1772254235968,-76280.0,0.000111,2]
[406868566,1772254235977,-1152.0,0.00011116,2]
[406868567,1772254235987,-1512.53,0.00011129,2]
[406868568,1772254235997,-166.66,0.00011178,2]
[406868569,1772254236006,-166.66,0.00011288,2]
[406868570,1772254236015,-282.727906,0.0001132,2]
[406868571,1772254236024,-166.66,0.00011397,2]
[406868572,1772254236034,-1062.33775238,0.00011412,2]
[406868573,1772254236043,-5531.0,0.000115,3]
[406868574,1772254236052,-166.66,0.00011507,2]
[406868575,1772254236062,-1252.0,0.00011514,2]
[406868576,1772254236072,-1539.14,0.00011571,2]
[406868577,1772254236081,-7322.32814893,0.00011625,2]
[406868578,1772254236091,-30045.72420917,0.00011644,2]
[406868579,1772254236105,-357.27579083,0.00011644,2]
[406868580,1772254236114,-897.14229594,0.00011693,2]
[406868581,1772254236130,-250.0,0.00011693,2]
[406868584,1772254237575,-3731.8588095,0.00011693,2]
[406868585,1772254237687,-23624.88770482,0.00011693,2]
[406868595,1772254237822,-6453.0,0.00011704,2]
[406868597,1772254237831,-4645.07157514,0.00011724,3]
[406868599,1772254237841,-6076.36,0.00011754,2]
[406868601,1772254237850,-5531.0,0.000119,5]
[406868603,1772254237859,-230.143724,0.00011936,2]
[406868606,1772254237869,-2316.607711,0.00011936,2]
[406868608,1772254237878,-500.0,0.0001207,2]
[406868609,1772254237888,-500.0,0.0001207,2]
[406868611,1772254237897,-500.0,0.0001207,2]
[406868613,1772254237906,-500.0,0.0001207,2]
[406868617,1772254237915,-500.0,0.0001207,2]
[406868618,1772254237924,-500.0,0.0001207,2]
[406868620,1772254237933,-500.0,0.0001207,2]
[406868622,1772254237942,-500.0,0.0001207,2]
[406868624,1772254237951,-600.0,0.0001207,2]
[406868626,1772254237961,-504.40204054,0.0001207,2]
[406868628,1772254237969,-600.0,0.0001207,2]
[406868630,1772254237978,-600.0,0.0001207,2]
[406868632,1772254237988,-600.0,0.0001207,2]
[406868634,1772254237997,-600.0,0.0001207,2]
[406868636,1772254238006,-600.0,0.0001207,2]
[406868638,1772254238015,-600.0,0.0001207,2]
[406868640,1772254238024,-500.0,0.0001207,2]
[406868642,1772254238033,-500.0,0.0001207,2]
[406868644,1772254238043,-600.0,0.0001207,2]
[406868646,1772254238051,-500.0,0.0001207,2]
[406868648,1772254238060,-500.0,0.0001207,2]
[406868650,1772254238070,-600.0,0.0001207,2]
[406868652,1772254238080,-500.0,0.0001207,2]
[406868654,1772254238091,-500.0,0.0001207,2]
[406868656,1772254238099,-600.0,0.0001207,2]
[406868658,1772254238109,-503.76298871,0.0001207,2]